[Event "Live Chess"]
[Site "Chess.com"]
[Date "2023.05.20"]
[Round "-"]
[White "ClassyChameleon"]
[Black "TheSmoulderingMaster"]
[Result "0-1"]
[WhiteElo "1065"]
[BlackElo "1763"]
[TimeControl "300"]
[EndTime "11:34:01 PDT"]
[Termination "TheSmoulderingMaster won by checkmate"]

1. e4 {[%clk 0:04:51.7]} 1... c5 {[%clk 0:04:58.8]} 2. Nc3 {[%clk 0:04:42.5]}
2... Nc6 {[%clk 0:04:57.2]} 3. Bc4 {[%clk 0:04:39.4]} 3... e6 {[%clk 0:04:56.4]}
4. d3 {[%clk 0:04:38.4]} 4... Nf6 {[%clk 0:04:55.7]} 5. Nf3 {[%clk 0:04:29]}
5... Be7 {[%clk 0:04:52.9]} 6. O-O {[%clk 0:04:27.2]} 6... O-O {[%clk 0:04:52]}
7. Bf4 {[%clk 0:04:24.3]} 7... d5 {[%clk 0:04:50.8]} 8. exd5 {[%clk 0:04:20.7]}
8... exd5 {[%clk 0:04:49.5]} 9. Bb3 {[%clk 0:04:16.8]} 9... Bg4 {[%clk
0:04:48.5]} 10. Ne2 {[%clk 0:04:03.2]} 10... Bxf3 {[%clk 0:04:46.7]} 11. gxf3
{[%clk 0:04:03]} 11... Nh5 {[%clk 0:04:43.1]} 12. Bg3 {[%clk 0:03:59.9]} 12...
Bd6 {[%clk 0:04:42.2]} 13. c4 {[%clk 0:03:53]} 13... d4 {[%clk 0:04:40.9]} 14.
Ba4 {[%clk 0:03:50.9]} 14... Qg5 {[%clk 0:04:37.8]} 15. Qc1 {[%clk 0:03:43.7]}
15... Qg6 {[%clk 0:04:32.6]} 16. Bxc6 {[%clk 0:03:34]} 16... bxc6 {[%clk
0:04:30.6]} 17. f4 {[%clk 0:03:29]} 17... Rae8 {[%clk 0:04:24.7]} 18. Re1 {[%clk
0:03:14]} 18... Nf6 {[%clk 0:04:18.5]} 19. Kg2 {[%clk 0:03:01]} 19... Qxd3
{[%clk 0:04:16]} 20. Ng1 {[%clk 0:02:55.7]} 20... Rxe1 {[%clk 0:04:11.2]} 21.
Qxe1 {[%clk 0:02:53.8]} 21... Re8 {[%clk 0:04:11.1]} 22. Qa5 {[%clk 0:02:49]}
22... Qe4+ {[%clk 0:04:07.5]} 23. Nf3 {[%clk 0:02:45.5]} 23... Nh5 {[%clk
0:04:04.1]} 24. Re1 {[%clk 0:02:31.1]} 24... f5 {[%clk 0:03:39.8]} 25. Rxe4
{[%clk 0:02:28.5]} 25... fxe4 {[%clk 0:03:39]} 26. Ne5 {[%clk 0:02:14.8]} 26...
d3 {[%clk 0:03:33.9]} 27. Nxc6 {[%clk 0:02:10.1]} 27... e3 {[%clk 0:03:23.8]}
28. fxe3 {[%clk 0:02:04.5]} 28... Rxe3 {[%clk 0:03:21.9]} 29. Qd8+ {[%clk
0:02:00.6]} 29... Bf8 {[%clk 0:03:19.3]} 30. Bf2 {[%clk 0:01:48.6]} 30... Nxf4+
{[%clk 0:03:16.4]} 31. Kh1 {[%clk 0:01:38]} 31... Re2 {[%clk 0:03:09.9]} 32. Bg1
{[%clk 0:01:01.1]} 32... d2 {[%clk 0:03:06.5]} 33. Bxc5 {[%clk 0:00:33.1]} 33...
Re1+ {[%clk 0:03:04.1]} 34. Bg1 {[%clk 0:00:31]} 34... d1=Q {[%clk 0:02:59.1]}
35. Qg5 {[%clk 0:00:22.5]} 35... Ne2 {[%clk 0:02:50]} 36. Ne7+ {[%clk
0:00:16.7]} 36... Bxe7 {[%clk 0:02:48.3]} 37. Qxe7 {[%clk 0:00:14.9]} 37...
Rxg1# {[%clk 0:02:47.5]} 0-1

[Event "Live Chess"]
[Site "Chess.com"]
[Date "2023.05.20"]
[Round "-"]
[White "GEMdzq"]
[Black "LGC4YOU"]
[Result "1-0"]
[WhiteElo "2203"]
[BlackElo "1185"]
[TimeControl "300"]
[EndTime "11:34:09 PDT"]
[Termination "GEMdzq won by checkmate"]

1. e4 {[%clk 0:04:58.8]} 1... c5 {[%clk 0:04:59.9]} 2. d4 {[%clk 0:04:57.7]}
2... Nc6 {[%clk 0:04:59.8]} 3. d5 {[%clk 0:04:54.3]} 3... Nb4 {[%clk 0:04:56.3]}
4. a3 {[%clk 0:04:46]} 4... Na6 {[%clk 0:04:54.4]} 5. Nf3 {[%clk 0:04:39.9]}
5... Qa5+ {[%clk 0:04:51.6]} 6. Nc3 {[%clk 0:04:37.1]} 6... g6 {[%clk
0:04:47.3]} 7. Bd2 {[%clk 0:04:34.9]} 7... Bg7 {[%clk 0:04:46.1]} 8. e5 {[%clk
0:04:23.5]} 8... d6 {[%clk 0:04:40.5]} 9. exd6 {[%clk 0:04:12.7]} 9... exd6
{[%clk 0:04:33.8]} 10. Bb5+ {[%clk 0:04:11.3]} 10... Bd7 {[%clk 0:04:24.3]} 11.
Qe2+ {[%clk 0:04:07.2]} 11... Ne7 {[%clk 0:04:16.7]} 12. O-O {[%clk 0:04:00.3]}
12... Bxb5 {[%clk 0:04:06.1]} 13. Nxb5 {[%clk 0:03:57.5]} 13... Qd8 {[%clk
0:03:50.5]} 14. Rfe1 {[%clk 0:03:56.7]} 14... Bf6 {[%clk 0:03:46.9]} 15. Bh6
{[%clk 0:03:24.9]} 15... Bxb2 {[%clk 0:03:45.6]} 16. Rab1 {[%clk 0:03:22.3]}
16... Bf6 {[%clk 0:03:36.4]} 17. g4 {[%clk 0:03:21.3]} 17... Kd7 {[%clk
0:03:25.5]} 18. Bf4 {[%clk 0:03:16]} 18... g5 {[%clk 0:03:17.8]} 19. Bxd6 {[%clk
0:03:08.2]} 19... Nxd5 {[%clk 0:02:58.9]} 20. Qd3 {[%clk 0:03:05.7]} 20... Bd4
{[%clk 0:02:38.3]} 21. Nfxd4 {[%clk 0:03:00.6]} 21... cxd4 {[%clk 0:02:37.3]}
22. Qxd4 {[%clk 0:02:59.2]} 22... Re8 {[%clk 0:02:26.2]} 23. Qxd5 {[%clk
0:02:57]} 23... Rxe1+ {[%clk 0:02:20.2]} 24. Rxe1 {[%clk 0:02:56.9]} 24... Kc8
{[%clk 0:01:35.5]} 25. Qc4+ {[%clk 0:02:50.9]} 25... Kd7 {[%clk 0:01:16.2]} 26.
Qxf7+ {[%clk 0:02:49.2]} 26... Kc6 {[%clk 0:01:15.2]} 27. Qc4+ {[%clk
0:02:47.3]} 27... Kd7 {[%clk 0:01:11.3]} 28. Qe6+ {[%clk 0:02:43.3]} 28... Kc6
{[%clk 0:01:09.8]} 29. Be7+ {[%clk 0:02:41.9]} 29... Kxb5 {[%clk 0:00:59.8]} 30.
Rb1+ {[%clk 0:02:40.9]} 30... Ka4 {[%clk 0:00:46.1]} 31. Qb3+ {[%clk 0:02:39.3]}
31... Ka5 {[%clk 0:00:40]} 32. Qb5# {[%clk 0:02:39.2]} 1-0

[Event "Live Chess"]
[Site "Chess.com"]
[Date "2023.05.20"]
[Round "-"]
[White "ViktorTheCoolBoy"]
[Black "Conradical12"]
[Result "1-0"]
[WhiteElo "2543"]
[BlackElo "1537"]
[TimeControl "300"]
[EndTime "11:34:09 PDT"]
[Termination "ViktorTheCoolBoy won by resignation"]

1. d4 {[%clk 0:04:58.1]} 1... Nf6 {[%clk 0:04:57.6]} 2. c4 {[%clk 0:04:55.3]}
2... c5 {[%clk 0:04:56.1]} 3. Nf3 {[%clk 0:04:48.3]} 3... g6 {[%clk 0:04:52.3]}
4. Nc3 {[%clk 0:04:44.4]} 4... Bg7 {[%clk 0:04:51.7]} 5. g3 {[%clk 0:04:33.8]}
5... O-O {[%clk 0:04:50.4]} 6. Bg2 {[%clk 0:04:30.4]} 6... Re8 {[%clk
0:04:48.6]} 7. O-O {[%clk 0:04:25.8]} 7... d6 {[%clk 0:04:47.7]} 8. h3 {[%clk
0:04:23.3]} 8... e6 {[%clk 0:04:36.3]} 9. Be3 {[%clk 0:04:14.7]} 9... Nbd7
{[%clk 0:04:32]} 10. Qd2 {[%clk 0:04:03.4]} 10... a5 {[%clk 0:04:28.5]} 11. Rfd1
{[%clk 0:03:58.8]} 11... Qb6 {[%clk 0:04:25.3]} 12. dxc5 {[%clk 0:03:54.9]}
12... dxc5 {[%clk 0:04:23]} 13. Qc2 {[%clk 0:03:51.9]} 13... e5 {[%clk
0:04:19.2]} 14. Nb5 {[%clk 0:03:47.2]} 14... e4 {[%clk 0:04:14]} 15. Ng5 {[%clk
0:03:37.5]} 15... h6 {[%clk 0:04:10.9]} 16. Nxe4 {[%clk 0:03:30]} 16... Nxe4
{[%clk 0:04:08.8]} 17. Bxe4 {[%clk 0:03:29.9]} 17... Nf6 {[%clk 0:03:51.7]} 18.
Rd6 {[%clk 0:03:27.3]} 18... Qxd6 {[%clk 0:03:42.3]} 19. Nxd6 {[%clk 0:03:26]}
19... Re6 {[%clk 0:03:36.3]} 20. Nxc8 {[%clk 0:03:24.7]} 20... Rxc8 {[%clk
0:03:34.2]} 21. Bxb7 {[%clk 0:03:23.1]} 21... Rb8 {[%clk 0:03:32.6]} 22. Bg2
{[%clk 0:03:19.4]} 22... Nh5 {[%clk 0:03:26.7]} 23. Rb1 {[%clk 0:03:08.5]} 23...
f5 {[%clk 0:03:20.3]} 24. Bd5 {[%clk 0:03:06.2]} 1-0

[Event "Live Chess"]
[Site "Chess.com"]
[Date "2023.05.20"]
[Round "-"]
[White "mattihelenius2"]
[Black "jk0110"]
[Result "0-1"]
[WhiteElo "490"]
[BlackElo "1079"]
[TimeControl "300"]
[EndTime "11:34:13 PDT"]
[Termination "jk0110 won by checkmate"]

1. d4 {[%clk 0:04:58.1]} 1... Nf6 {[%clk 0:04:57.7]} 2. c4 {[%clk 0:04:41.9]}
2... e5 {[%clk 0:04:55.8]} 3. dxe5 {[%clk 0:04:36.6]} 3... Ne4 {[%clk
0:04:54.5]} 4. Qd4 {[%clk 0:04:29.2]} 4... Nc5 {[%clk 0:04:31.9]} 5. Nf3 {[%clk
0:04:15.2]} 5... Nc6 {[%clk 0:04:29.8]} 6. Qh4 {[%clk 0:04:01.2]} 6... Be7
{[%clk 0:04:20.6]} 7. Qf4 {[%clk 0:03:46]} 7... O-O {[%clk 0:04:17.4]} 8. Nc3
{[%clk 0:03:39.6]} 8... d6 {[%clk 0:04:03.4]} 9. Be3 {[%clk 0:03:29.2]} 9... Ne6
{[%clk 0:03:59.2]} 10. Qf5 {[%clk 0:03:14.5]} 10... Ned4 {[%clk 0:03:47.7]} 11.
Bxd4 {[%clk 0:03:12.6]} 11... Bxf5 {[%clk 0:03:44.5]} 12. e4 {[%clk 0:02:48.1]}
12... Nxd4 {[%clk 0:03:39.4]} 13. Nxd4 {[%clk 0:02:46.5]} 13... Be6 {[%clk
0:03:31.3]} 14. Nxe6 {[%clk 0:02:44.2]} 14... fxe6 {[%clk 0:03:31.2]} 15. Rd1
{[%clk 0:02:39.5]} 15... Bg5 {[%clk 0:03:11.9]} 16. Nb5 {[%clk 0:02:24.6]} 16...
a6 {[%clk 0:03:00.1]} 17. exd6 {[%clk 0:02:21.3]} 17... cxd6 {[%clk 0:02:53.3]}
18. Nxd6 {[%clk 0:02:19]} 18... Qa5+ {[%clk 0:02:45.7]} 19. Ke2 {[%clk
0:02:04.8]} 19... Rad8 {[%clk 0:02:29.6]} 20. Nxb7 {[%clk 0:02:02.9]} 20... Rd2+
{[%clk 0:02:06.5]} 21. Rxd2 {[%clk 0:01:56.8]} 21... Qxd2# {[%clk 0:02:05.9]}
0-1

[Event "Live Chess"]
[Site "Chess.com"]
[Date "2023.05.20"]
[Round "-"]
[White "OceanFloater"]
[Black "jagbama"]
[Result "1-0"]
[WhiteElo "972"]
[BlackElo "1113"]
[TimeControl "300"]
[EndTime "11:34:26 PDT"]
[Termination "OceanFloater won by resignation"]

1. e4 {[%clk 0:04:54.7]} 1... e5 {[%clk 0:04:57.3]} 2. Nf3 {[%clk 0:04:53.7]}
2... Nc6 {[%clk 0:04:56.7]} 3. Bc4 {[%clk 0:04:53]} 3... Bc5 {[%clk 0:04:55.7]}
4. d3 {[%clk 0:04:51]} 4... h6 {[%clk 0:04:53.3]} 5. Nc3 {[%clk 0:04:50.2]} 5...
Nf6 {[%clk 0:04:52.4]} 6. O-O {[%clk 0:04:49.7]} 6... Nd4 {[%clk 0:04:51.6]} 7.
Nxd4 {[%clk 0:04:48.2]} 7... Bxd4 {[%clk 0:04:51.1]} 8. Nd5 {[%clk 0:04:46.8]}
8... c6 {[%clk 0:04:49.6]} 9. Nxf6+ {[%clk 0:04:45.4]} 9... Qxf6 {[%clk
0:04:49.1]} 10. c3 {[%clk 0:04:44.4]} 10... Bb6 {[%clk 0:04:47.3]} 11. Re1
{[%clk 0:04:39.9]} 11... d6 {[%clk 0:04:41.6]} 12. Be3 {[%clk 0:04:35.1]} 12...
g5 {[%clk 0:04:28.7]} 13. Bxb6 {[%clk 0:04:33.4]} 13... axb6 {[%clk 0:04:27.9]}
14. a3 {[%clk 0:04:30.6]} 14... h5 {[%clk 0:04:25.4]} 15. h3 {[%clk 0:04:26.9]}
15... g4 {[%clk 0:04:24]} 16. Re3 {[%clk 0:04:21.5]} 16... gxh3 {[%clk
0:04:21.8]} 17. Rxh3 {[%clk 0:04:19.6]} 17... Bxh3 {[%clk 0:04:20.1]} 18. gxh3
{[%clk 0:04:18.2]} 18... Rg8+ {[%clk 0:04:17.2]} 19. Kh2 {[%clk 0:04:17.3]}
19... Qf4+ {[%clk 0:04:15.7]} 20. Kh1 {[%clk 0:04:11]} 20... Qh4 {[%clk
0:04:09.7]} 21. Qf3 {[%clk 0:04:06.1]} 21... Ke7 {[%clk 0:03:58.3]} 22. Qxf7+
{[%clk 0:04:03.5]} 22... Kd8 {[%clk 0:03:56]} 23. Qxg8+ {[%clk 0:03:58.2]} 1-0

[Event "Live Chess"]
[Site "Chess.com"]
[Date "2023.05.20"]
[Round "-"]
[White "Mikhail_Golubev"]
[Black "chessfiction"]
[Result "0-1"]
[WhiteElo "2518"]
[BlackElo "2412"]
[TimeControl "300"]
[EndTime "11:34:29 PDT"]
[Termination "chessfiction won by checkmate"]

1. e4 {[%clk 0:04:56.7]} 1... e6 {[%clk 0:04:57.5]} 2. d4 {[%clk 0:04:54.3]}
2... d5 {[%clk 0:04:57.4]} 3. Nc3 {[%clk 0:04:51.8]} 3... Bb4 {[%clk 0:04:52.8]}
4. exd5 {[%clk 0:04:49.6]} 4... exd5 {[%clk 0:04:51.2]} 5. Bd3 {[%clk
0:04:48.8]} 5... Ne7 {[%clk 0:04:50.4]} 6. a3 {[%clk 0:04:40]} 6... Bd6 {[%clk
0:04:47.2]} 7. Qh5 {[%clk 0:04:33.2]} 7... Nbc6 {[%clk 0:04:39.1]} 8. Nf3 {[%clk
0:04:20.2]} 8... Be6 {[%clk 0:04:18.2]} 9. O-O {[%clk 0:03:52.1]} 9... Qd7
{[%clk 0:04:14.4]} 10. Ng5 {[%clk 0:03:45.8]} 10... Nxd4 {[%clk 0:03:36.8]} 11.
Nxe6 {[%clk 0:03:42.9]} 11... Nxe6 {[%clk 0:03:34.9]} 12. f4 {[%clk 0:03:00.9]}
12... g6 {[%clk 0:03:11.6]} 13. Qf3 {[%clk 0:02:58.8]} 13... c6 {[%clk
0:03:06.7]} 14. f5 {[%clk 0:02:50.4]} 14... Nd4 {[%clk 0:03:00.3]} 15. Qe3
{[%clk 0:02:36.1]} 15... Nxf5 {[%clk 0:02:59.3]} 16. Bxf5 {[%clk 0:02:35.5]}
16... gxf5 {[%clk 0:02:57.9]} 17. Kh1 {[%clk 0:02:28.6]} 17... O-O-O {[%clk
0:02:55.5]} 18. Qxa7 {[%clk 0:02:26.3]} 18... Bb8 {[%clk 0:02:53.6]} 19. Qa8
{[%clk 0:02:21.1]} 19... Ng6 {[%clk 0:02:52.2]} 20. Na4 {[%clk 0:02:17.8]} 20...
Qc7 {[%clk 0:02:51.2]} 21. g3 {[%clk 0:02:06.3]} 21... h5 {[%clk 0:02:49.3]} 22.
Bf4 {[%clk 0:01:57.9]} 22... Nxf4 {[%clk 0:02:47.7]} 23. Rxf4 {[%clk 0:01:57.5]}
23... h4 {[%clk 0:02:45.8]} 24. Rb4 {[%clk 0:01:53.1]} 24... b5 {[%clk
0:02:33.3]} 25. Nc5 {[%clk 0:01:39.1]} 25... Rdg8 {[%clk 0:02:25.5]} 26. Kg2
{[%clk 0:00:35.6]} 26... Rxg3+ {[%clk 0:02:07.1]} 27. hxg3 {[%clk 0:00:34.5]}
27... Qxg3+ {[%clk 0:02:06.2]} 28. Kf1 {[%clk 0:00:33.3]} 28... Qf3+ {[%clk
0:01:53.7]} 29. Ke1 {[%clk 0:00:32.6]} 29... Re8+ {[%clk 0:01:52.4]} 30. Re4
{[%clk 0:00:27.9]} 30... Rxe4+ {[%clk 0:01:48.2]} 31. Nxe4 {[%clk 0:00:27.8]}
31... Qxe4+ {[%clk 0:01:47.1]} 32. Kd2 {[%clk 0:00:26.4]} 32... Qf4+ {[%clk
0:01:27.8]} 33. Ke2 {[%clk 0:00:25.7]} 33... Qh2+ {[%clk 0:01:01.7]} 34. Kd3
{[%clk 0:00:24.7]} 34... Qg3+ {[%clk 0:00:59.8]} 35. Kd2 {[%clk 0:00:23.8]}
35... Qf2+ {[%clk 0:00:58.1]} 36. Kd3 {[%clk 0:00:23.4]} 36... Qg3+ {[%clk
0:00:33.5]} 37. Kd2 {[%clk 0:00:22.5]} 37... Kd7 {[%clk 0:00:32.9]} 38. Qb7+
{[%clk 0:00:20.6]} 38... Kd8 {[%clk 0:00:27.4]} 39. Qxc6 {[%clk 0:00:17]} 39...
Bf4+ {[%clk 0:00:26.1]} 40. Kd1 {[%clk 0:00:14.8]} 40... Qg1+ {[%clk 0:00:24.8]}
41. Ke2 {[%clk 0:00:13.9]} 41... Qg2+ {[%clk 0:00:24.3]} 42. Ke1 {[%clk
0:00:11.9]} 42... Qd2+ {[%clk 0:00:19.9]} 43. Kf1 {[%clk 0:00:11.1]} 43... h3
{[%clk 0:00:19.2]} 44. Re1 {[%clk 0:00:08.7]} 44... Qg2# {[%clk 0:00:17.5]} 0-1

[Event "Live Chess"]
[Site "Chess.com"]
[Date "2023.05.20"]
[Round "-"]
[White "domrobson"]
[Black "minenko-1958"]
[Result "1/2-1/2"]
[WhiteElo "1751"]
[BlackElo "1424"]
[TimeControl "300"]
[EndTime "11:34:37 PDT"]
[Termination "Game drawn - insufficient material"]

1. d4 {[%clk 0:04:58.3]} 1... d5 {[%clk 0:04:58.7]} 2. c4 {[%clk 0:04:24.8]}
2... dxc4 {[%clk 0:04:57.3]} 3. Nf3 {[%clk 0:04:23.4]} 3... Nd7 {[%clk
0:04:55.5]} 4. Nc3 {[%clk 0:04:17.4]} 4... Nb6 {[%clk 0:04:53]} 5. e4 {[%clk
0:04:09.8]} 5... Bg4 {[%clk 0:04:48.2]} 6. Be3 {[%clk 0:04:02.2]} 6... Bxf3
{[%clk 0:04:46.8]} 7. Qxf3 {[%clk 0:03:59.9]} 7... e6 {[%clk 0:04:46.7]} 8. d5
{[%clk 0:03:55]} 8... exd5 {[%clk 0:04:40.3]} 9. Bxb6 {[%clk 0:03:52.8]} 9...
axb6 {[%clk 0:04:30.3]} 10. exd5 {[%clk 0:03:51.9]} 10... Bd6 {[%clk 0:04:26]}
11. Bxc4 {[%clk 0:03:46.4]} 11... Ne7 {[%clk 0:04:23.3]} 12. Kf1 {[%clk
0:03:40.6]} 12... O-O {[%clk 0:04:21.8]} 13. g3 {[%clk 0:03:37.2]} 13... Ng6
{[%clk 0:04:17.5]} 14. Qe2 {[%clk 0:03:30.7]} 14... Re8 {[%clk 0:04:15]} 15. Qc2
{[%clk 0:03:28.1]} 15... Qf6 {[%clk 0:03:55.4]} 16. Kg2 {[%clk 0:03:21.2]} 16...
Bc5 {[%clk 0:03:53.8]} 17. Rhf1 {[%clk 0:03:18.9]} 17... Ne5 {[%clk 0:03:49.9]}
18. Be2 {[%clk 0:03:15.7]} 18... c6 {[%clk 0:03:25.9]} 19. dxc6 {[%clk
0:03:12.3]} 19... bxc6 {[%clk 0:03:24.6]} 20. Rae1 {[%clk 0:03:06]} 20... Ng6
{[%clk 0:03:01.8]} 21. Ne4 {[%clk 0:02:59.6]} 21... Qe7 {[%clk 0:02:57.1]} 22.
Nxc5 {[%clk 0:02:57.5]} 22... Qxc5 {[%clk 0:02:55.4]} 23. Qxc5 {[%clk
0:02:55.7]} 23... bxc5 {[%clk 0:02:54.6]} 24. Bc4 {[%clk 0:02:52.7]} 24... Rxe1
{[%clk 0:02:48.5]} 25. Rxe1 {[%clk 0:02:50.9]} 25... h6 {[%clk 0:02:44]} 26. Re2
{[%clk 0:02:46.7]} 26... Kf8 {[%clk 0:02:39.8]} 27. f4 {[%clk 0:02:44.3]} 27...
Ne7 {[%clk 0:02:37.2]} 28. Rd2 {[%clk 0:02:39.2]} 28... Nd5 {[%clk 0:02:28.1]}
29. Bxd5 {[%clk 0:02:37.9]} 29... cxd5 {[%clk 0:02:26.7]} 30. Rxd5 {[%clk
0:02:37.6]} 30... Rxa2 {[%clk 0:02:25.4]} 31. Rxc5 {[%clk 0:02:37.3]} 31... g6
{[%clk 0:02:22.8]} 32. Rb5 {[%clk 0:02:35]} 32... Ke7 {[%clk 0:02:19.4]} 33. h4
{[%clk 0:02:33.9]} 33... h5 {[%clk 0:02:17.8]} 34. Kf3 {[%clk 0:02:31.5]} 34...
Ra1 {[%clk 0:02:16.6]} 35. b4 {[%clk 0:02:29.3]} 35... Ra3+ {[%clk 0:02:12.2]}
36. Kg2 {[%clk 0:02:26.2]} 36... Rb3 {[%clk 0:02:10.4]} 37. Rb7+ {[%clk
0:02:22.2]} 37... Ke6 {[%clk 0:02:08.8]} 38. b5 {[%clk 0:02:20.8]} 38... Kf6
{[%clk 0:02:05.6]} 39. b6 {[%clk 0:02:18.9]} 39... Rb2+ {[%clk 0:02:03.5]} 40.
Kh3 {[%clk 0:02:15.5]} 40... Rb3 {[%clk 0:02:01.4]} 41. Rb8 {[%clk 0:02:14.7]}
41... Kf5 {[%clk 0:01:55.2]} 42. b7 {[%clk 0:02:12.1]} 42... f6 {[%clk
0:01:51.4]} 43. Kg2 {[%clk 0:02:10.4]} 43... Rb2+ {[%clk 0:01:50.1]} 44. Kf1
{[%clk 0:02:08.3]} 44... Kg4 {[%clk 0:01:46.2]} 45. Rg8 {[%clk 0:02:05.3]} 45...
Rxb7 {[%clk 0:01:40.4]} 46. Rxg6+ {[%clk 0:02:03.6]} 46... Kf3 {[%clk
0:01:40.3]} 47. Ke1 {[%clk 0:02:01.1]} 47... f5 {[%clk 0:01:35.2]} 48. Rg5
{[%clk 0:01:59.2]} 48... Rb2 {[%clk 0:01:30.9]} 49. Kd1 {[%clk 0:01:57.6]} 49...
Rh2 {[%clk 0:01:25.9]} 50. Rxh5 {[%clk 0:01:51.9]} 50... Kxg3 {[%clk 0:01:24.8]}
51. Rxf5 {[%clk 0:01:51]} 51... Rxh4 {[%clk 0:01:23.3]} 52. Rf8 {[%clk
0:01:41.3]} 52... Rxf4 {[%clk 0:01:21.4]} 53. Rg8+ {[%clk 0:01:38.7]} 53... Kf3
{[%clk 0:01:19]} 54. Kd2 {[%clk 0:01:36.1]} 54... Ra4 {[%clk 0:01:15.9]} 55.
Rf8+ {[%clk 0:01:34.1]} 55... Kg4 {[%clk 0:01:14.1]} 56. Rb8 {[%clk 0:01:31.5]}
56... Ra3 {[%clk 0:01:12.7]} 57. Kc2 {[%clk 0:01:29.9]} 57... Kf4 {[%clk
0:01:09.7]} 58. Rb4+ {[%clk 0:01:28.1]} 58... Ke5 {[%clk 0:01:07.5]} 59. Rh4
{[%clk 0:01:26.7]} 59... Rg3 {[%clk 0:01:05.3]} 60. Rh5+ {[%clk 0:01:25.9]}
60... Kd4 {[%clk 0:01:03.4]} 61. Ra5 {[%clk 0:01:25.8]} 61... Kc4 {[%clk
0:01:01.9]} 62. Ra4+ {[%clk 0:01:25]} 62... Kb5 {[%clk 0:01:00.6]} 63. Ra8
{[%clk 0:01:22.2]} 63... Kc4 {[%clk 0:00:59.6]} 64. Rc8+ {[%clk 0:01:20.5]}
64... Kb4 {[%clk 0:00:57.9]} 65. Kd2 {[%clk 0:01:18.9]} 65... Rg2+ {[%clk
0:00:54.3]} 66. Ke3 {[%clk 0:01:18.1]} 66... Rg3+ {[%clk 0:00:53.1]} 67. Kf4
{[%clk 0:01:16.7]} 67... Rg1 {[%clk 0:00:52.1]} 68. Ke4 {[%clk 0:01:15.8]} 68...
Re1+ {[%clk 0:00:51]} 69. Kd3 {[%clk 0:01:15.2]} 69... Rd1+ {[%clk 0:00:49.9]}
70. Ke2 {[%clk 0:01:14.8]} 70... Ra1 {[%clk 0:00:47.1]} 71. Rb8+ {[%clk
0:01:14.1]} 71... Kc4 {[%clk 0:00:46.1]} 72. Rc8+ {[%clk 0:01:14]} 72... Kd4
{[%clk 0:00:44.8]} 73. Rd8+ {[%clk 0:01:13.7]} 73... Ke4 {[%clk 0:00:43.5]} 74.
Re8+ {[%clk 0:01:11.8]} 74... Kf5 {[%clk 0:00:42.4]} 75. Rf8+ {[%clk 0:01:11.7]}
75... Ke6 {[%clk 0:00:41.2]} 76. Rf1 {[%clk 0:01:09.5]} 76... Rxf1 {[%clk
0:00:38.6]} 77. Kxf1 {[%clk 0:01:09.4]} 1/2-1/2

[Event "Live Chess"]
[Site "Chess.com"]
[Date "2023.05.20"]
[Round "-"]
[White "Jeffaroow"]
[Black "Lewstar1"]
[Result "1-0"]
[WhiteElo "468"]
[BlackElo "442"]
[TimeControl "300"]
[EndTime "11:34:43 PDT"]
[Termination "Jeffaroow won by checkmate"]

1. e4 {[%clk 0:04:59.2]} 1... e5 {[%clk 0:04:48.2]} 2. Nf3 {[%clk 0:04:57.1]}
2... Nc6 {[%clk 0:04:45]} 3. d4 {[%clk 0:04:55.7]} 3... d6 {[%clk 0:04:37.8]} 4.
dxe5 {[%clk 0:04:52]} 4... Nxe5 {[%clk 0:04:31.1]} 5. Nxe5 {[%clk 0:04:34.1]}
5... dxe5 {[%clk 0:04:31]} 6. Nc3 {[%clk 0:04:30.7]} 6... Qxd1+ {[%clk
0:04:26.2]} 7. Nxd1 {[%clk 0:04:30.5]} 7... Nf6 {[%clk 0:04:21.7]} 8. Bd3 {[%clk
0:04:27.7]} 8... Bb4+ {[%clk 0:04:17.4]} 9. c3 {[%clk 0:04:22.6]} 9... Bc5
{[%clk 0:04:16]} 10. O-O {[%clk 0:04:19.6]} 10... h5 {[%clk 0:04:04.5]} 11. Be3
{[%clk 0:04:18.3]} 11... Bxe3 {[%clk 0:04:02.2]} 12. Nxe3 {[%clk 0:04:18.2]}
12... g5 {[%clk 0:04:01.2]} 13. f3 {[%clk 0:04:00.5]} 13... g4 {[%clk
0:03:54.9]} 14. fxg4 {[%clk 0:03:43.6]} 14... hxg4 {[%clk 0:03:51.5]} 15. Rxf6
{[%clk 0:03:42.2]} 15... Be6 {[%clk 0:03:31.6]} 16. h3 {[%clk 0:03:28.7]} 16...
gxh3 {[%clk 0:03:27.5]} 17. Raf1 {[%clk 0:03:15.4]} 17... Rg8 {[%clk 0:03:20.6]}
18. R1f2 {[%clk 0:02:50.7]} 18... Bxa2 {[%clk 0:03:07.3]} 19. Nd5 {[%clk
0:02:45.4]} 19... Bxd5 {[%clk 0:02:53]} 20. exd5 {[%clk 0:02:43.9]} 20... O-O-O
{[%clk 0:02:52.4]} 21. Rxf7 {[%clk 0:02:41.7]} 21... Rxd5 {[%clk 0:02:50.2]} 22.
Bf5+ {[%clk 0:02:33]} 22... Kd8 {[%clk 0:02:45.1]} 23. Be4 {[%clk 0:02:22.7]}
23... Rd1+ {[%clk 0:02:42]} 24. Rf1 {[%clk 0:02:19]} 24... Rxg2+ {[%clk
0:02:40.1]} 25. Bxg2 {[%clk 0:02:16.2]} 25... hxg2 {[%clk 0:02:40]} 26. Kxg2
{[%clk 0:02:14.8]} 26... Rd2+ {[%clk 0:02:36.5]} 27. Kg1 {[%clk 0:02:13.3]}
27... Rxb2 {[%clk 0:02:32.1]} 28. R1f5 {[%clk 0:01:54.8]} 28... Re2 {[%clk
0:02:25.4]} 29. Rf8+ {[%clk 0:01:47]} 29... Ke7 {[%clk 0:02:21.6]} 30. R8f7+
{[%clk 0:01:45.3]} 30... Ke6 {[%clk 0:02:15.4]} 31. Rf2 {[%clk 0:01:43.4]} 31...
Re3 {[%clk 0:02:10.9]} 32. Rxc7 {[%clk 0:01:29]} 32... Rg3+ {[%clk 0:02:06.1]}
33. Kf1 {[%clk 0:01:27.6]} 33... a5 {[%clk 0:01:57.8]} 34. Rxb7 {[%clk 0:01:25]}
34... Rxc3 {[%clk 0:01:55.9]} 35. Rb6+ {[%clk 0:01:19.1]} 35... Kd5 {[%clk
0:01:51.3]} 36. Rd2+ {[%clk 0:01:15]} 36... Ke4 {[%clk 0:01:48.3]} 37. Re2+
{[%clk 0:01:09.1]} 37... Kf3 {[%clk 0:01:45.6]} 38. Rf6+ {[%clk 0:01:05.5]}
38... Kg4 {[%clk 0:01:36.4]} 39. Rg2+ {[%clk 0:01:02.7]} 39... Rg3 {[%clk
0:01:36]} 40. Rxg3+ {[%clk 0:01:01.4]} 40... Kxg3 {[%clk 0:01:35.9]} 41. Rf5
{[%clk 0:01:00.2]} 41... a4 {[%clk 0:01:31.8]} 42. Rxe5 {[%clk 0:00:58.9]} 42...
a3 {[%clk 0:01:30]} 43. Ra5 {[%clk 0:00:58]} 43... Kh2 {[%clk 0:01:24]} 44. Rxa3
{[%clk 0:00:53.5]} 44... Kh1 {[%clk 0:01:21.4]} 45. Rh3# {[%clk 0:00:51.5]} 1-0